[Event "*** Titled Tuesday Blitz"]
[Site "Chess.com"]
[Date "2018.06.05"]
[Round "5"]
[White "hitaman"]
[Black "Kubas1010"]
[Result "1-0"]
[WhiteElo "2574"]
[BlackElo "2389"]
[TimeControl "180+2"]
[EndTime "14:08:54 PDT"]
[Termination "hitaman won by resignation"]

1. e4 {[%clk 0:03:01.9]} 1... e5 {[%clk 0:02:59.9]} 2. Nf3 {[%clk 0:03:02.5]}
2... Nc6 {[%clk 0:03:00.9]} 3. Bb5 {[%clk 0:03:03]} 3... a6 {[%clk 0:03:02]} 4.
Bxc6 {[%clk 0:03:04.1]} 4... dxc6 {[%clk 0:03:03.9]} 5. O-O {[%clk 0:03:05.4]}
5... Ne7 {[%clk 0:03:00.4]} 6. Nxe5 {[%clk 0:03:05.5]} 6... Qd4 {[%clk
0:03:00.4]} 7. Qh5 {[%clk 0:03:05.9]} 7... g6 {[%clk 0:02:57.9]} 8. Nf3 {[%clk
0:03:03.7]} 8... Qxe4 {[%clk 0:02:53.6]} 9. Qa5 {[%clk 0:03:03.1]} 9... Qf4
{[%clk 0:02:35.4]} 10. d3 {[%clk 0:02:45]} 10... Qd6 {[%clk 0:02:34.9]} 11. Qc3
{[%clk 0:02:43.8]} 11... Rg8 {[%clk 0:02:32.3]} 12. Re1 {[%clk 0:02:38]} 12...
Bg7 {[%clk 0:02:26.9]} 13. d4 {[%clk 0:02:34.7]} 13... h6 {[%clk 0:02:21]} 14.
Nbd2 {[%clk 0:02:33.5]} 14... Bf5 {[%clk 0:02:19.3]} 15. Nc4 {[%clk 0:02:32.4]}
15... Qf6 {[%clk 0:02:12.3]} 16. Bf4 {[%clk 0:02:28.7]} 16... Be6 {[%clk
0:02:06.3]} 17. Be5 {[%clk 0:02:20.4]} 17... Qf5 {[%clk 0:02:06.4]} 18. Bxc7
{[%clk 0:02:21.4]} 18... Nd5 {[%clk 0:02:00]} 19. Nd6+ {[%clk 0:02:21.7]} 19...
Kd7 {[%clk 0:01:59.8]} 20. Nxf5 {[%clk 0:02:04.8]} 20... Nxc3 {[%clk 0:02:00.2]}
21. Nxg7 {[%clk 0:02:06.7]} 21... Rxg7 {[%clk 0:01:51.7]} 22. Be5 {[%clk
0:02:06.9]} 22... f6 {[%clk 0:01:53.1]} 23. Bxf6 {[%clk 0:02:08.1]} 1-0

[Event "*** Titled Tuesday Blitz"]
[Site "Chess.com"]
[Date "2018.06.05"]
[Round "5"]
[White "AlexTruskavetsky"]
[Black "dawtonlms"]
[Result "1-0"]
[WhiteElo "2282"]
[BlackElo "2378"]
[TimeControl "180+2"]
[EndTime "14:09:10 PDT"]
[Termination "AlexTruskavetsky won by resignation"]

1. d4 {[%clk 0:03:01.9]} 1... Nf6 {[%clk 0:02:59.5]} 2. c4 {[%clk 0:03:01.9]}
2... e6 {[%clk 0:02:59.9]} 3. g3 {[%clk 0:03:01.8]} 3... d5 {[%clk 0:03:00.1]}
4. Nf3 {[%clk 0:03:01.6]} 4... Be7 {[%clk 0:03:01]} 5. Bg2 {[%clk 0:03:02.1]}
5... O-O {[%clk 0:03:01.9]} 6. O-O {[%clk 0:03:02.9]} 6... c6 {[%clk 0:03:02.8]}
7. Nbd2 {[%clk 0:03:00.3]} 7... b6 {[%clk 0:03:00.2]} 8. Qc2 {[%clk 0:02:58]}
8... Bb7 {[%clk 0:03:00.5]} 9. e4 {[%clk 0:02:57.4]} 9... Na6 {[%clk 0:03:01.1]}
10. e5 {[%clk 0:02:41.8]} 10... Nd7 {[%clk 0:03:00.3]} 11. cxd5 {[%clk
0:02:39.6]} 11... Nb4 {[%clk 0:02:59.5]} 12. Qb3 {[%clk 0:02:36.1]} 12... Nxd5
{[%clk 0:02:59.8]} 13. Ne4 {[%clk 0:02:34.1]} 13... c5 {[%clk 0:02:52.3]} 14.
Nd6 {[%clk 0:02:34.4]} 14... Bxd6 {[%clk 0:02:39.7]} 15. exd6 {[%clk 0:02:35]}
15... cxd4 {[%clk 0:02:16.6]} 16. Nxd4 {[%clk 0:02:34]} 16... N7f6 {[%clk
0:02:16.6]} 17. Nb5 {[%clk 0:02:19.7]} 17... Ba6 {[%clk 0:02:14.2]} 18. Rd1
{[%clk 0:02:15.5]} 18... Bxb5 {[%clk 0:02:13.1]} 19. Qxb5 {[%clk 0:02:15.6]}
19... Qxd6 {[%clk 0:02:13.9]} 20. Bf4 {[%clk 0:02:12.8]} 20... Qc5 {[%clk
0:02:12.8]} 21. Qxc5 {[%clk 0:02:12.8]} 21... bxc5 {[%clk 0:02:14.7]} 22. Bd6
{[%clk 0:02:13.5]} 22... Rfc8 {[%clk 0:02:13.2]} 23. Rac1 {[%clk 0:02:10.7]}
23... c4 {[%clk 0:02:12.6]} 24. Rd4 {[%clk 0:02:08.9]} 24... Rc6 {[%clk
0:02:11.5]} 25. Be5 {[%clk 0:02:07.3]} 25... Rb8 {[%clk 0:02:03.4]} 26. Bxb8
{[%clk 0:02:06.3]} 1-0

[Event "*** Titled Tuesday Blitz"]
[Site "Chess.com"]
[Date "2018.06.05"]
[Round "5"]
[White "Velis23"]
[Black "Raja3401"]
[Result "0-1"]
[WhiteElo "2251"]
[BlackElo "2401"]
[TimeControl "180+2"]
[EndTime "14:09:45 PDT"]
[Termination "Raja3401 won by resignation"]

1. Nf3 {[%clk 0:03:00.8]} 1... c5 {[%clk 0:02:57.9]} 2. c3 {[%clk 0:03:00.2]}
2... Nf6 {[%clk 0:02:55.6]} 3. d4 {[%clk 0:03:01.4]} 3... cxd4 {[%clk
0:02:56.7]} 4. cxd4 {[%clk 0:03:01.6]} 4... d5 {[%clk 0:02:54.9]} 5. Nc3 {[%clk
0:03:03]} 5... Nc6 {[%clk 0:02:55.5]} 6. Bf4 {[%clk 0:03:04.3]} 6... Bf5 {[%clk
0:02:55.8]} 7. e3 {[%clk 0:03:02.5]} 7... e6 {[%clk 0:02:56.8]} 8. Qb3 {[%clk
0:03:02]} 8... Bb4 {[%clk 0:02:50.4]} 9. Bb5 {[%clk 0:02:59.6]} 9... O-O {[%clk
0:02:51.3]} 10. Bxc6 {[%clk 0:02:58.6]} 10... Bxc3+ {[%clk 0:02:52.4]} 11. Qxc3
{[%clk 0:02:56.2]} 11... Rc8 {[%clk 0:02:53]} 12. Qa3 {[%clk 0:02:48.4]} 12...
Rxc6 {[%clk 0:02:49.8]} 13. Qxa7 {[%clk 0:02:45.4]} 13... Ra6 {[%clk 0:02:05.9]}
14. Qc5 {[%clk 0:02:40.9]} 14... Ne4 {[%clk 0:01:58.5]} 15. Qc1 {[%clk
0:02:28.3]} 15... Qa5+ {[%clk 0:01:55.1]} 16. Kf1 {[%clk 0:02:14.6]} 16... Rc6
{[%clk 0:01:51.1]} 17. Qe1 {[%clk 0:02:00.9]} 17... Qb5+ {[%clk 0:01:51]} 18.
Kg1 {[%clk 0:02:01.4]} 18... Qxb2 {[%clk 0:01:46.7]} 19. Ne5 {[%clk 0:01:50.1]}
19... Rc2 {[%clk 0:01:42.6]} 20. Nd3 {[%clk 0:01:50.2]} 20... Qa3 {[%clk
0:01:39.3]} 21. Qd1 {[%clk 0:01:38.1]} 21... Rd2 {[%clk 0:01:33.6]} 22. Qc1
{[%clk 0:01:34]} 22... Qxd3 {[%clk 0:01:31.3]} 0-1

[Event "*** Titled Tuesday Blitz"]
[Site "Chess.com"]
[Date "2018.06.05"]
[Round "5"]
[White "talento10"]
[Black "GMCanty"]
[Result "1-0"]
[WhiteElo "2175"]
[BlackElo "2195"]
[TimeControl "180+2"]
[EndTime "14:09:47 PDT"]
[Termination "talento10 won by resignation"]

1. e4 {[%clk 0:03:01.9]} 1... c5 {[%clk 0:02:58.2]} 2. Nf3 {[%clk 0:03:02.4]}
2... g6 {[%clk 0:02:57.8]} 3. d4 {[%clk 0:03:00.9]} 3... cxd4 {[%clk 0:02:59.3]}
4. Nxd4 {[%clk 0:03:02.8]} 4... Nc6 {[%clk 0:02:58.9]} 5. Nc3 {[%clk 0:03:03.9]}
5... Bg7 {[%clk 0:02:58.5]} 6. Be3 {[%clk 0:03:05.1]} 6... Nf6 {[%clk
0:02:52.8]} 7. Nxc6 {[%clk 0:03:05.6]} 7... bxc6 {[%clk 0:02:51.6]} 8. e5 {[%clk
0:03:06.9]} 8... Ng8 {[%clk 0:02:51.9]} 9. f4 {[%clk 0:03:05.9]} 9... Nh6 {[%clk
0:02:51.6]} 10. Qd2 {[%clk 0:02:31.8]} 10... O-O {[%clk 0:02:48.4]} 11. O-O-O
{[%clk 0:02:32.8]} 11... d6 {[%clk 0:02:48.4]} 12. Bc4 {[%clk 0:02:31.1]} 12...
d5 {[%clk 0:02:44.7]} 13. h3 {[%clk 0:02:27]} 13... Be6 {[%clk 0:02:25.9]} 14.
Bb3 {[%clk 0:02:27.8]} 14... f6 {[%clk 0:02:02.2]} 15. g4 {[%clk 0:02:28.7]}
15... fxe5 {[%clk 0:02:00.3]} 16. f5 {[%clk 0:02:29.9]} 16... gxf5 {[%clk
0:01:25.6]} 17. Bxh6 {[%clk 0:02:30]} 17... f4 {[%clk 0:01:27.1]} 18. Bxg7
{[%clk 0:02:31.1]} 18... Kxg7 {[%clk 0:01:28.6]} 19. Qe1 {[%clk 0:02:17.3]}
19... Qc7 {[%clk 0:01:19.5]} 20. Ne4 {[%clk 0:02:18.2]} 20... dxe4 {[%clk
0:01:12.2]} 21. Bxe6 {[%clk 0:02:18.4]} 21... e3 {[%clk 0:01:02.3]} 22. Rd7
{[%clk 0:02:14]} 22... Qb6 {[%clk 0:01:02.4]} 23. Qh4 {[%clk 0:02:05.9]} 1-0

[Event "*** Titled Tuesday Blitz"]
[Site "Chess.com"]
[Date "2018.06.05"]
[Round "5"]
[White "nubair1198"]
[Black "Sanan_Sjugirov"]
[Result "0-1"]
[WhiteElo "2538"]
[BlackElo "2711"]
[TimeControl "180+2"]
[EndTime "14:10:05 PDT"]
[Termination "Sanan_Sjugirov won by resignation"]

1. d4 {[%clk 0:03:01.9]} 1... d6 {[%clk 0:02:54.9]} 2. c4 {[%clk 0:03:03.5]}
2... g6 {[%clk 0:02:55.8]} 3. Nc3 {[%clk 0:03:04.2]} 3... Bg7 {[%clk 0:02:56.9]}
4. e4 {[%clk 0:03:05.7]} 4... e5 {[%clk 0:02:51.5]} 5. d5 {[%clk 0:02:59.9]}
5... a5 {[%clk 0:02:49.3]} 6. h4 {[%clk 0:02:57.5]} 6... h5 {[%clk 0:02:49.4]}
7. Be2 {[%clk 0:02:54.6]} 7... Na6 {[%clk 0:02:47.4]} 8. Nf3 {[%clk 0:02:55.9]}
8... Bh6 {[%clk 0:02:44.4]} 9. Ng5 {[%clk 0:02:45.2]} 9... Qe7 {[%clk
0:02:42.1]} 10. g4 {[%clk 0:01:51.8]} 10... hxg4 {[%clk 0:02:34.4]} 11. Bxg4
{[%clk 0:01:52.6]} 11... Bxg4 {[%clk 0:02:32.1]} 12. Qxg4 {[%clk 0:01:54.5]}
12... Nf6 {[%clk 0:02:30.9]} 13. Qg2 {[%clk 0:01:50.5]} 13... Nb4 {[%clk
0:02:15]} 14. f3 {[%clk 0:01:41]} 14... Nh5 {[%clk 0:02:01.9]} 15. Ne2 {[%clk
0:01:28.6]} 15... Nc2+ {[%clk 0:02:01.5]} 16. Kf2 {[%clk 0:01:28]} 16... Nxa1
{[%clk 0:02:01.3]} 17. Ne6 {[%clk 0:01:04.2]} 17... fxe6 {[%clk 0:01:54.9]} 18.
Qxg6+ {[%clk 0:00:48.4]} 18... Qf7 {[%clk 0:01:55.2]} 19. Qg4 {[%clk 0:00:50]}
19... Nf6 {[%clk 0:01:53]} 20. Qh3 {[%clk 0:00:46.1]} 20... Nxe4+ {[%clk
0:01:51.6]} 0-1

[Event "*** Titled Tuesday Blitz"]
[Site "Chess.com"]
[Date "2018.06.05"]
[Round "5"]
[White "maciek_92"]
[Black "littleplotkin"]
[Result "0-1"]
[WhiteElo "2607"]
[BlackElo "2427"]
[TimeControl "180+2"]
[EndTime "14:10:11 PDT"]
[Termination "littleplotkin won by resignation"]

1. c4 {[%clk 0:03:01.9]} 1... g6 {[%clk 0:03:00.9]} 2. Nc3 {[%clk 0:03:02.2]}
2... Bg7 {[%clk 0:03:02.8]} 3. d4 {[%clk 0:03:00.6]} 3... d6 {[%clk 0:03:04.7]}
4. e4 {[%clk 0:02:50.1]} 4... Nc6 {[%clk 0:03:04.6]} 5. d5 {[%clk 0:02:49.2]}
5... Nd4 {[%clk 0:03:04.9]} 6. Nge2 {[%clk 0:02:44.8]} 6... Bg4 {[%clk
0:03:05.4]} 7. Be3 {[%clk 0:02:44.7]} 7... c5 {[%clk 0:03:03.7]} 8. f3 {[%clk
0:02:42.7]} 8... Bxf3 {[%clk 0:03:03.8]} 9. Qa4+ {[%clk 0:02:27.9]} 9... Kf8
{[%clk 0:02:56.2]} 10. gxf3 {[%clk 0:02:28.7]} 10... Nxf3+ {[%clk 0:02:56.1]}
11. Kd1 {[%clk 0:02:30.1]} 11... Nf6 {[%clk 0:02:55.7]} 12. h3 {[%clk
0:02:26.3]} 12... a6 {[%clk 0:02:53.7]} 13. Bg2 {[%clk 0:02:27.2]} 13... Nh4
{[%clk 0:02:53.9]} 14. Bf1 {[%clk 0:02:26.9]} 14... b5 {[%clk 0:02:51.9]} 15.
Qc2 {[%clk 0:02:23.9]} 15... Nf3 {[%clk 0:02:48.7]} 16. cxb5 {[%clk 0:02:20.2]}
16... axb5 {[%clk 0:02:48.6]} 17. Nxb5 {[%clk 0:02:22.1]} 17... Qa5 {[%clk
0:02:33.2]} 18. Nec3 {[%clk 0:02:23]} 18... Nh5 {[%clk 0:02:29]} 19. Be2 {[%clk
0:02:20.1]} 19... Nd4 {[%clk 0:02:28.6]} 20. Bxd4 {[%clk 0:02:10.6]} 20... cxd4
{[%clk 0:02:30.4]} 21. Nb1 {[%clk 0:02:05.8]} 21... Bh6 {[%clk 0:02:16.2]} 22.
Bxh5 {[%clk 0:01:59.3]} 22... Qxb5 {[%clk 0:02:04.4]} 23. Be2 {[%clk 0:02:00.2]}
23... Qa5 {[%clk 0:02:04.8]} 24. Na3 {[%clk 0:02:01.4]} 24... Kg7 {[%clk
0:02:06]} 25. Nc4 {[%clk 0:02:02.8]} 25... Qb4 {[%clk 0:02:07]} 26. a3 {[%clk
0:02:03.3]} 26... Rhc8 {[%clk 0:02:03.5]} 27. Qd3 {[%clk 0:01:57.8]} 27... Rxc4
{[%clk 0:01:59.7]} 28. Qxc4 {[%clk 0:01:52.1]} 28... Qxb2 {[%clk 0:01:59.8]} 29.
Qa2 {[%clk 0:01:53.6]} 29... Qc3 {[%clk 0:01:49.9]} 30. a4 {[%clk 0:01:32.9]}
30... Rxa4 {[%clk 0:01:47.8]} 0-1

[Event "*** Titled Tuesday Blitz"]
[Site "Chess.com"]
[Date "2018.06.05"]
[Round "5"]
[White "Godzillator"]
[Black "lionheart95"]
[Result "1/2-1/2"]
[WhiteElo "2256"]
[BlackElo "2386"]
[TimeControl "180+2"]
[EndTime "14:10:13 PDT"]
[Termination "Game drawn by agreement"]

1. d4 {[%clk 0:03:01.9]} 1... Nf6 {[%clk 0:02:19.9]} 2. c4 {[%clk 0:03:02.7]}
2... g6 {[%clk 0:02:18.9]} 3. Nc3 {[%clk 0:03:03.4]} 3... Bg7 {[%clk 0:02:20.2]}
4. e4 {[%clk 0:03:04]} 4... d6 {[%clk 0:02:21.4]} 5. Be2 {[%clk 0:03:05.2]} 5...
O-O {[%clk 0:02:22.7]} 6. Bg5 {[%clk 0:03:06.7]} 6... c5 {[%clk 0:02:23.5]} 7.
d5 {[%clk 0:03:07.5]} 7... e6 {[%clk 0:02:23.3]} 8. Qd2 {[%clk 0:03:08.1]} 8...
exd5 {[%clk 0:02:23.9]} 9. exd5 {[%clk 0:03:09.2]} 9... Qb6 {[%clk 0:02:22.2]}
10. Nf3 {[%clk 0:03:06.5]} 10... h6 {[%clk 0:02:23.3]} 11. Bf4 {[%clk
0:03:02.9]} 11... g5 {[%clk 0:02:23]} 12. Be3 {[%clk 0:03:03.5]} 12... Ng4
{[%clk 0:02:22.7]} 13. O-O {[%clk 0:02:55.9]} 13... Nxe3 {[%clk 0:02:23.6]} 14.
fxe3 {[%clk 0:02:56.1]} 14... Nd7 {[%clk 0:02:24.3]} 15. e4 {[%clk 0:02:53.3]}
15... Ne5 {[%clk 0:02:24.9]} 16. Nxe5 {[%clk 0:02:52.9]} 16... Bxe5 {[%clk
0:02:26.8]} 17. Kh1 {[%clk 0:02:38.4]} 17... Bd7 {[%clk 0:02:27.2]} 18. Rae1
{[%clk 0:02:23.7]} 18... Rae8 {[%clk 0:02:28.4]} 19. b3 {[%clk 0:02:23.9]} 19...
Qa5 {[%clk 0:02:28.2]} 20. Nb1 {[%clk 0:02:18.1]} 20... Qxd2 {[%clk 0:02:28.8]}
21. Nxd2 {[%clk 0:02:19.2]} 21... Bc3 {[%clk 0:02:30.1]} 22. Rd1 {[%clk
0:02:20.3]} 22... Bxd2 {[%clk 0:02:30.1]} 23. Rxd2 {[%clk 0:02:21.2]} 23... Rxe4
{[%clk 0:02:31.5]} 24. Bd3 {[%clk 0:02:21.6]} 24... Re5 {[%clk 0:02:30]} 25.
Rdf2 {[%clk 0:02:18.4]} 25... f5 {[%clk 0:02:27]} 26. g3 {[%clk 0:02:19.5]}
26... Kg7 {[%clk 0:02:27.6]} 27. Kg2 {[%clk 0:02:13.1]} 27... Rf6 {[%clk
0:02:25.7]} 28. h4 {[%clk 0:02:10.4]} 28... a6 {[%clk 0:02:22.5]} 29. hxg5
{[%clk 0:02:11.2]} 29... hxg5 {[%clk 0:02:22.8]} 30. a4 {[%clk 0:01:59.7]} 30...
a5 {[%clk 0:02:22.4]} 31. Bc2 {[%clk 0:01:58.4]} 31... g4 {[%clk 0:02:22.4]} 32.
Rf4 {[%clk 0:01:55.8]} 32... Rf8 {[%clk 0:02:14.7]} 33. R1f2 {[%clk 0:01:54.6]}
33... Kh6 {[%clk 0:02:12.6]} 34. Rxg4 {[%clk 0:01:52.1]} 34... fxg4 {[%clk
0:02:11.3]} 35. Rxf8 {[%clk 0:01:52.7]} 35... Re2+ {[%clk 0:02:03.6]} 36. Rf2
{[%clk 0:01:53.2]} 36... Rxf2+ {[%clk 0:02:02.3]} 37. Kxf2 {[%clk 0:01:54.2]}
37... Kg5 {[%clk 0:02:02.5]} 38. Ke3 {[%clk 0:01:55.1]} 38... b6 {[%clk
0:02:03.6]} 39. Bd3 {[%clk 0:01:55]} 39... Bc8 {[%clk 0:02:03.3]} 40. Bc2 {[%clk
0:01:55.8]} 40... Bd7 {[%clk 0:02:04.2]} 41. Bd3 {[%clk 0:01:57]} 41... Be8
{[%clk 0:02:05.4]} 42. Bc2 {[%clk 0:01:55.9]} 1/2-1/2

[Event "*** Titled Tuesday Blitz"]
[Site "Chess.com"]
[Date "2018.06.05"]
[Round "5"]
[White "mazetofonias"]
[Black "RichardABates"]
[Result "1-0"]
[WhiteElo "2537"]
[BlackElo "2323"]
[TimeControl "180+2"]
[EndTime "14:10:37 PDT"]
[Termination "mazetofonias won by resignation"]

1. e4 {[%clk 0:03:01.9]} 1... c5 {[%clk 0:02:29.8]} 2. Nf3 {[%clk 0:03:02.5]}
2... d6 {[%clk 0:02:30.3]} 3. d4 {[%clk 0:03:03.8]} 3... cxd4 {[%clk 0:02:31.4]}
4. Nxd4 {[%clk 0:03:05.7]} 4... Nf6 {[%clk 0:02:32.6]} 5. Nc3 {[%clk 0:03:07.1]}
5... a6 {[%clk 0:02:33.9]} 6. h3 {[%clk 0:03:08.6]} 6... e5 {[%clk 0:02:34.4]}
7. Nf3 {[%clk 0:03:06]} 7... Be7 {[%clk 0:02:27.1]} 8. a4 {[%clk 0:03:06.1]}
8... O-O {[%clk 0:02:27.4]} 9. Bg5 {[%clk 0:03:07]} 9... Nbd7 {[%clk 0:02:27]}
10. Bc4 {[%clk 0:03:07.5]} 10... b6 {[%clk 0:02:24.3]} 11. Qe2 {[%clk
0:03:06.7]} 11... Bb7 {[%clk 0:02:25]} 12. Nd2 {[%clk 0:03:05.1]} 12... Qc7
{[%clk 0:02:22]} 13. Bxf6 {[%clk 0:03:05.9]} 13... Nxf6 {[%clk 0:02:21.9]} 14.
O-O {[%clk 0:03:07.4]} 14... Rfd8 {[%clk 0:02:13.9]} 15. Rad1 {[%clk 0:03:05]}
15... d5 {[%clk 0:02:08.1]} 16. exd5 {[%clk 0:03:04.9]} 16... Nxd5 {[%clk
0:02:08.3]} 17. Nxd5 {[%clk 0:03:05.5]} 17... Bxd5 {[%clk 0:02:08.5]} 18. Bxd5
{[%clk 0:03:06.5]} 18... Rxd5 {[%clk 0:02:08.6]} 19. Nc4 {[%clk 0:03:06.5]}
19... Rc5 {[%clk 0:02:02.1]} 20. Ne3 {[%clk 0:03:04.4]} 20... Bg5 {[%clk
0:02:02.1]} 21. Nd5 {[%clk 0:03:02]} 21... Qd8 {[%clk 0:01:53.4]} 22. c4 {[%clk
0:03:00.3]} 22... Rac8 {[%clk 0:01:28.2]} 23. b3 {[%clk 0:02:59.5]} 23... Bf6
{[%clk 0:01:27.3]} 24. Qe4 {[%clk 0:02:56.4]} 24... h6 {[%clk 0:01:13.3]} 25.
Rd3 {[%clk 0:02:55.1]} 25... Qd6 {[%clk 0:00:58.4]} 26. Rfd1 {[%clk 0:02:56]}
26... Qe6 {[%clk 0:00:53.6]} 27. Nb4 {[%clk 0:02:39.1]} 27... b5 {[%clk
0:00:36.3]} 28. Rd6 {[%clk 0:02:38.1]} 28... Qe8 {[%clk 0:00:18.6]} 29. Nxa6
{[%clk 0:02:38.1]} 29... bxa4 {[%clk 0:00:16]} 30. Nxc5 {[%clk 0:02:38.5]} 30...
Rxc5 {[%clk 0:00:16.7]} 31. bxa4 {[%clk 0:02:39.8]} 31... Qxa4 {[%clk
0:00:16.5]} 32. Rd8+ {[%clk 0:02:39.6]} 1-0

[Event "*** Titled Tuesday Blitz"]
[Site "Chess.com"]
[Date "2018.06.05"]
[Round "5"]
[White "1e41-0"]
[Black "Dr-Bassem"]
[Result "0-1"]
[WhiteElo "2412"]
[BlackElo "2676"]
[TimeControl "180+2"]
[EndTime "14:10:39 PDT"]
[Termination "Dr-Bassem won by resignation"]

1. e4 {[%clk 0:03:01.9]} 1... e5 {[%clk 0:02:57]} 2. Nf3 {[%clk 0:03:00.5]} 2...
Nc6 {[%clk 0:02:58.2]} 3. g3 {[%clk 0:03:01.8]} 3... Nf6 {[%clk 0:02:56.5]} 4.
d3 {[%clk 0:03:02.9]} 4... d5 {[%clk 0:02:56.9]} 5. exd5 {[%clk 0:03:04.8]} 5...
Nxd5 {[%clk 0:02:56.3]} 6. Bg2 {[%clk 0:03:06.3]} 6... g6 {[%clk 0:02:57.5]} 7.
O-O {[%clk 0:03:06.7]} 7... Bg7 {[%clk 0:02:59]} 8. Nc3 {[%clk 0:03:08.6]} 8...
Nde7 {[%clk 0:02:57.7]} 9. Rb1 {[%clk 0:03:06.4]} 9... a5 {[%clk 0:02:50.9]} 10.
a3 {[%clk 0:03:05.8]} 10... O-O {[%clk 0:02:50.8]} 11. Bd2 {[%clk 0:03:04.8]}
11... h6 {[%clk 0:02:48.4]} 12. b4 {[%clk 0:03:05.4]} 12... axb4 {[%clk
0:02:49.2]} 13. axb4 {[%clk 0:03:07.3]} 13... Nf5 {[%clk 0:02:31.8]} 14. b5
{[%clk 0:03:02.2]} 14... Ncd4 {[%clk 0:02:32.5]} 15. Nxd4 {[%clk 0:02:57.5]}
15... Nxd4 {[%clk 0:02:34.4]} 16. Ne2 {[%clk 0:02:52.5]} 16... Bg4 {[%clk
0:02:32.2]} 17. f3 {[%clk 0:02:50.6]} 17... Be6 {[%clk 0:02:29.9]} 18. Nxd4
{[%clk 0:02:43.7]} 18... Qxd4+ {[%clk 0:02:19.3]} 19. Kh1 {[%clk 0:02:43.8]}
19... Ra2 {[%clk 0:02:17.5]} 20. Rb4 {[%clk 0:02:37.8]} 20... Qc5 {[%clk
0:02:14.3]} 21. Rh4 {[%clk 0:01:58.6]} 21... g5 {[%clk 0:01:57.5]} 22. Bb4
{[%clk 0:01:09]} 22... Qxc2 {[%clk 0:01:57.5]} 23. Qxc2 {[%clk 0:01:09.9]} 23...
Rxc2 {[%clk 0:01:59.4]} 24. Bxf8 {[%clk 0:01:10]} 24... gxh4 {[%clk 0:02:00.4]}
25. Bxg7 {[%clk 0:01:11.4]} 25... h3 {[%clk 0:02:01.5]} 26. Bxh3 {[%clk
0:00:50.2]} 26... Bxh3 {[%clk 0:02:03.3]} 27. Re1 {[%clk 0:00:51.6]} 27... Kxg7
{[%clk 0:01:59.5]} 28. g4 {[%clk 0:00:50.7]} 28... Kf6 {[%clk 0:01:51.6]} 29.
Kg1 {[%clk 0:00:51.1]} 29... Rg2+ {[%clk 0:01:50.8]} 30. Kh1 {[%clk 0:00:51.9]}
30... Rf2 {[%clk 0:01:51.8]} 0-1

[Event "*** Titled Tuesday Blitz"]
[Site "Chess.com"]
[Date "2018.06.05"]
[Round "5"]
[White "Blitzking4444"]
[Black "savinspm"]
[Result "0-1"]
[WhiteElo "2059"]
[BlackElo "2135"]
[TimeControl "180+2"]
[EndTime "14:10:46 PDT"]
[Termination "savinspm won on time"]

1. e4 {[%clk 0:03:01.9]} 1... e5 {[%clk 0:03:00.6]} 2. Nf3 {[%clk 0:03:01.2]}
2... Nc6 {[%clk 0:03:01.8]} 3. Bb5 {[%clk 0:03:00.5]} 3... a6 {[%clk 0:03:02.5]}
4. Ba4 {[%clk 0:03:01.1]} 4... Nf6 {[%clk 0:03:02.4]} 5. O-O {[%clk 0:03:02.1]}
5... Be7 {[%clk 0:03:03.6]} 6. d3 {[%clk 0:03:03.2]} 6... b5 {[%clk 0:03:04.4]}
7. Bb3 {[%clk 0:03:03.9]} 7... d6 {[%clk 0:03:05.9]} 8. a3 {[%clk 0:02:45.3]}
8... Na5 {[%clk 0:03:05.1]} 9. Ba2 {[%clk 0:02:45.5]} 9... c5 {[%clk 0:03:06.2]}
10. b4 {[%clk 0:02:44.9]} 10... cxb4 {[%clk 0:03:03.5]} 11. axb4 {[%clk
0:02:45.6]} 11... Nc6 {[%clk 0:03:05]} 12. c3 {[%clk 0:02:29.7]} 12... O-O
{[%clk 0:03:05.6]} 13. Nbd2 {[%clk 0:02:08.3]} 13... Qc7 {[%clk 0:03:04.8]} 14.
Bb2 {[%clk 0:02:07.2]} 14... Nd8 {[%clk 0:02:53.6]} 15. d4 {[%clk 0:01:58.2]}
15... Be6 {[%clk 0:02:50.3]} 16. d5 {[%clk 0:01:14]} 16... Bg4 {[%clk 0:02:50]}
17. Qe2 {[%clk 0:01:02.6]} 17... Nh5 {[%clk 0:02:47.9]} 18. h3 {[%clk
0:00:51.1]} 18... Nf4 {[%clk 0:02:46.9]} 19. Qe3 {[%clk 0:00:49.3]} 19... Bd7
{[%clk 0:02:44.2]} 20. Rfc1 {[%clk 0:00:40.1]} 20... Qa7 {[%clk 0:02:35.4]} 21.
Nd4 {[%clk 0:00:21]} 21... Bg5 {[%clk 0:02:08.4]} 22. Qg3 {[%clk 0:00:02.2]}
22... Bh6 {[%clk 0:02:00.8]} 23. N4f3 {[%clk 0:00:02.5]} 23... Ne2+ {[%clk
0:02:01.3]} 0-1

[Event "*** Titled Tuesday Blitz"]
[Site "Chess.com"]
[Date "2018.06.05"]
[Round "5"]
[White "Gvalch"]
[Black "Mr_Penings"]
[Result "0-1"]
[WhiteElo "2597"]
[BlackElo "2461"]
[TimeControl "180+2"]
[EndTime "14:11:00 PDT"]
[Termination "Mr_Penings won by resignation"]

1. d4 {[%clk 0:03:01.9]} 1... Nf6 {[%clk 0:02:59.8]} 2. c4 {[%clk 0:03:03.3]}
2... d6 {[%clk 0:03:00]} 3. Nf3 {[%clk 0:03:02.9]} 3... Nbd7 {[%clk 0:03:00]} 4.
Bf4 {[%clk 0:03:02.6]} 4... g6 {[%clk 0:03:00.7]} 5. h3 {[%clk 0:03:03.3]} 5...
Bg7 {[%clk 0:03:02.1]} 6. e3 {[%clk 0:03:04.1]} 6... O-O {[%clk 0:03:03.6]} 7.
Nc3 {[%clk 0:03:05.6]} 7... c6 {[%clk 0:03:04.1]} 8. Be2 {[%clk 0:03:00.7]} 8...
Qe8 {[%clk 0:02:59.7]} 9. O-O {[%clk 0:03:00.9]} 9... e5 {[%clk 0:03:00.8]} 10.
Bh2 {[%clk 0:03:02.1]} 10... Qe7 {[%clk 0:02:57.2]} 11. Rc1 {[%clk 0:02:55.9]}
11... e4 {[%clk 0:02:49.6]} 12. Nd2 {[%clk 0:02:56]} 12... Re8 {[%clk
0:02:50.3]} 13. Qc2 {[%clk 0:02:46.8]} 13... Nf8 {[%clk 0:02:50.5]} 14. b4
{[%clk 0:02:46]} 14... Bf5 {[%clk 0:02:25.5]} 15. a4 {[%clk 0:02:44.9]} 15... h5
{[%clk 0:02:18.6]} 16. c5 {[%clk 0:02:37.3]} 16... d5 {[%clk 0:02:13.3]} 17. b5
{[%clk 0:02:37.9]} 17... N8h7 {[%clk 0:01:58.8]} 18. Bf4 {[%clk 0:02:37.7]}
18... g5 {[%clk 0:01:51.1]} 19. Bd6 {[%clk 0:02:37.7]} 19... Qe6 {[%clk
0:01:48]} 20. Rfe1 {[%clk 0:02:26.6]} 20... h4 {[%clk 0:01:38.9]} 21. Nb3 {[%clk
0:01:42.3]} 21... g4 {[%clk 0:01:16]} 22. hxg4 {[%clk 0:01:39]} 22... Bxg4
{[%clk 0:01:12.6]} 23. Bf1 {[%clk 0:01:39.6]} 23... h3 {[%clk 0:01:11.2]} 24. g3
{[%clk 0:01:24.3]} 24... Bf3 {[%clk 0:01:03.8]} 25. Ne2 {[%clk 0:01:22.7]} 25...
h2+ {[%clk 0:00:59]} 26. Kxh2 {[%clk 0:01:19.8]} 26... Ng4+ {[%clk 0:01:00.2]}
27. Kg1 {[%clk 0:01:15.1]} 27... Qh6 {[%clk 0:01:01]} 0-1